bitfinex/quotes_ETHUSD_20220106
["timestamp","ask_amount","ask_price","bid_price","bid_amount"]
[1641443293997,0.345,3442.9,3442.5,0.00738951]
[1641443295244,0.345,3442.9,3442.6,1.61616279]
[1641443295445,0.345,3443.4,3442.6,1.61616279]
[1641443295747,0.345,3443.4,3443.3,1.97316867]
[1641443296047,1.79768,3443.4,3443.3,1.97601079]
[1641443296245,1.79768,3443.4,3443.3,0.00284212]
[1641443296846,0.345,3443.4,3443.3,0.00284212]
[1641443297546,0.00113685,3444.0,3442.6,0.30682108]
[1641443297547,0.34613685,3444.0,3442.6,0.30682108]
[1641443297748,0.00113685,3444.0,3443.1,6.17]
[1641443297994,0.00113685,3444.0,3443.5,1.36122673]
[1641443298195,0.00113685,3444.0,3443.1,6.17]
[1641443298196,0.00113685,3444.0,3443.6,2.1874952]
[1641443298395,0.00113685,3444.0,3443.6,2.18863205]
[1641443299403,0.72617,3443.9,3443.6,2.18863205]
[1641443299803,0.72617,3443.9,3443.6,0.00113685]
[1641443300002,0.00389209,3443.8,3443.6,0.00113685]
[1641443300202,0.00389209,3443.8,3443.3,0.00284212]
[1641443301007,0.72621,3443.7,3443.4,2.15339716]
[1641443301204,0.72621,3443.7,3443.3,0.00284212]
[1641443301405,0.72621,3443.7,3443.5,0.00170527]
[1641443301612,0.72621,3443.7,3443.3,0.00284212]
[1641443302445,0.72621,3443.7,3443.4,1.66499655]
[1641443302846,0.72621,3443.7,3443.5,0.00170527]
[1641443304350,0.72621,3443.7,3443.3,0.00284212]
[1641443304752,0.345,3443.6,3443.3,0.00284212]
[1641443304954,0.7262836,3443.5,3443.3,0.00284212]
[1641443305590,0.00389248,3443.4,3443.3,1.80526794]
[1641443306190,0.00389248,3443.4,3443.3,0.00284212]
[1641443309251,0.00389248,3443.4,3443.3,0.00384789]
[1641443309455,0.00389248,3443.4,3443.3,0.00100577]
[1641443309651,0.00389248,3443.4,3443.3,0.00384789]
[1641443313012,9.248e-05,3443.4,3443.3,0.00384789]
[1641443313199,9.248e-05,3443.4,3443.3,0.04509428]
[1641443313200,4.0,3443.4,3443.3,0.04509428]
[1641443313396,0.00113685,3444.0,3443.4,7.8]
[1641443313600,0.00113685,3444.0,3443.5,1.3]
[1641443313798,0.00156265,3443.9,3443.5,1.34324639]
[1641443314096,0.00099423,3443.8,3443.6,0.7259]
[1641443314499,0.00781531,3445.0,3443.7,0.3]
[1641443314898,0.00724689,3444.9,3443.7,0.3]
[1641443315098,0.73320689,3444.9,3443.7,0.3]
[1641443315298,0.00667846,3444.8,3443.7,0.72593]
[1641443315700,0.00611004,3444.7,3443.5,0.04324639]
[1641443315900,0.00611004,3444.7,3443.4,7.9048]
[1641443316099,0.7261,3444.2,3443.4,4.0]
[1641443316299,0.00554162,3444.6,3443.4,4.0]
[1641443316501,1.45215,3444.7,3443.4,4.3]
[1641443316502,0.0026995,3444.1,3443.4,4.3]
[1641443316740,0.00497319,3444.5,3443.6,2.92621462]
[1641443316941,0.00213108,3444.0,3443.6,2.92621462]
[1641443317154,0.00440477,3444.4,3443.6,3.22621462]
[1641443317343,0.00156265,3443.9,3443.6,3.22621462]
[1641443317543,0.7259953,3444.9,3443.7,1.0]
[1641443317544,0.00383635,3444.3,3443.7,1.0]
[1641443317743,0.00383635,3444.3,3443.6,3.22621462]
[1641443317744,0.00099423,3443.8,3443.6,2.08846575]
[1641443317946,0.00326792,3444.2,3443.6,2.08846575]
[1641443318145,0.00781531,3445.0,3443.6,2.08846575]
[1641443318446,0.00724689,3444.9,3443.6,2.08846575]
[1641443318645,0.72607,3444.3,3443.6,2.08846575]
[1641443319044,0.00326792,3444.2,3443.6,2.08846575]
[1641443319247,0.00326792,3444.2,3443.5,1.0]
[1641443319450,0.00326792,3444.2,3443.3,0.00184789]
[1641443319451,0.3476995,3444.1,3443.3,0.00184789]
[1641443319848,0.72625,3443.8,3443.0,0.00355316]
[1641443320046,0.72625,3443.8,3443.4,0.00083789]
[1641443320047,0.345,3443.7,3443.4,0.00083789]
[1641443321405,3.2502365,3443.7,3443.4,0.00083789]
[1641443322009,3.2502365,3443.7,3443.1,1.65510332]
[1641443322010,3.2502365,3443.7,3443.1,1.55594121]
[1641443322215,2.5239465,3443.7,3443.1,1.55594121]
[1641443322407,0.7262626,3443.6,3443.2,0.00241631]
[1641443322605,0.72626,3443.4,3443.2,0.00241631]
[1641443322805,0.345,3443.3,3443.2,0.00241631]
[1641443325058,0.72612,3444.1,3443.2,0.00241631]
[1641443325358,0.00156265,3443.9,3443.2,3.35679334]
[1641443325562,0.00156265,3443.9,3443.2,0.00241631]
[1641443325759,0.00099423,3443.8,3443.3,0.00184789]
[1641443325958,0.00099423,3443.8,3443.2,0.00241631]
[1641443326158,0.00497319,3444.5,3444.1,2.05916964]
[1641443326359,1.45232,3444.3,3444.1,2.05916964]
[1641443326761,2.55326792,3444.2,3444.1,2.05916964]
[1641443327159,5.30326792,3444.2,3444.1,2.05916964]
[1641443327559,5.30326792,3444.2,3443.2,0.00241631]
[1641443327759,0.72619,3443.8,3443.2,0.00241631]
[1641443327993,0.72619,3443.8,3442.9,0.00412158]
[1641443328396,0.72619,3443.8,3442.9,0.00288358]
[1641443328597,0.0016638,3443.7,3443.5,1.93264079]
[1641443328800,0.0016638,3443.7,3442.9,0.00288358]
[1641443328801,0.72625,3443.4,3442.9,0.00288358]
[1641443328998,0.00109538,3443.6,3442.9,0.00288358]
[1641443329198,0.00109538,3443.6,3442.8,0.00345201]
[1641443329903,0.00109538,3443.6,3443.3,1.77004984]
[1641443330099,0.00109538,3443.6,3442.7,0.00402043]
[1641443330100,0.72628,3443.3,3442.7,0.00402043]
[1641443330299,1.07128,3443.3,3442.7,0.00402043]
[1641443330499,1.07128,3443.3,3442.2,0.00686255]
[1641443330699,1.07128,3443.3,3442.8,0.00085018]
[1641443331099,1.07128,3443.3,3443.2,1.99321109]
[1641443331500,1.07128,3443.3,3443.2,1.9943894]
[1641443332143,1.7976493,3443.3,3443.2,1.9943894]
[1641443332343,1.7976493,3443.3,3443.2,0.00117831]
[1641443332742,1.7976493,3443.3,3442.9,0.00288358]
[1641443333143,1.07128,3443.3,3442.9,0.00288358]
[1641443333547,1.07128,3443.3,3443.0,2.00679741]
[1641443333945,1.07128,3443.3,3443.1,0.00174674]
[1641443334348,1.7976015,3443.3,3443.1,0.00174674]
[1641443334749,1.07128,3443.3,3443.1,0.00174674]
[1641443334948,0.345,3443.3,3443.1,0.00174674]
[1641443336001,1.07129,3443.3,3443.1,0.00174674]
[1641443336706,0.345,3443.3,3443.1,0.00174674]
[1641443339104,1.07128,3443.3,3443.1,0.00174674]
[1641443340253,1.7976228,3443.3,3443.1,0.00174674]
[1641443340650,6.6,3443.2,3442.8,0.00085018]
[1641443340852,1.0715,3443.1,3442.8,0.00085018]
[1641443341049,1.0715,3443.1,3442.9,0.00113684]
[1641443341254,5.6,3443.0,3442.5,0.3]
[1641443341450,0.345,3442.9,3442.5,0.3]
[1641443341650,0.345,3442.8,3442.6,0.00170527]
[1641443342051,0.345,3442.8,3442.7,1.91137844]
[1641443342352,9.66247844,3442.7,3441.3,0.18819996]
[1641443342555,9.66247844,3442.7,3440.4,0.75810913]
[1641443342556,0.72677,3441.5,3440.4,0.75810913]
[1641443342759,16.95,3442.1,3439.9,3.10796523]
[1641443342760,1.7986645,3441.4,3439.9,3.10796523]
[1641443342992,16.95,3441.8,3439.9,3.10796523]
[1641443342993,0.345,3441.3,3439.9,3.10796523]
[1641443343193,0.3,3441.7,3439.9,3.10796523]
[1641443343194,0.345,3441.2,3440.3,1.3526066]
[1641443343393,1.3,3441.7,3440.4,1.74105138]
[1641443343394,0.345,3441.1,3440.4,1.74105138]
[1641443343598,0.72685,3440.8,3440.4,1.75412512]
[1641443343799,0.345,3440.7,3440.5,0.01250532]
[1641443343998,1.0719079,3440.7,3440.5,0.01250532]
[1641443344599,1.0719079,3440.7,3440.4,1.74105138]
[1641443344600,1.3719079,3440.7,3440.4,1.74105138]
[1641443344800,1.3719079,3440.7,3439.6,0.9608]
[1641443344801,0.72703,3440.6,3439.6,0.9608]
[1641443345002,0.7270075,3440.4,3439.6,0.9608]
[1641443345200,0.345,3440.3,3439.7,0.00454738]
[1641443345600,0.345,3440.3,3439.5,0.00568423]
[1641443345799,0.72701,3440.2,3439.6,1.80313366]
[1641443346100,0.345,3440.1,3439.6,1.80313366]
[1641443347250,0.345,3440.1,3439.6,2.11539811]
[1641443347455,0.345,3441.6,3440.0,0.01241863]
[1641443347653,6.31647494,3442.1,3441.1,0.01235079]
[1641443347851,3.38677,3441.6,3441.1,0.01235079]
[1641443348250,0.00568424,3441.5,3441.1,0.01235079]
[1641443348453,0.00568424,3441.5,3441.2,2.230972]
[1641443348658,0.00511582,3441.4,3441.2,2.230972]
[1641443349056,0.00454739,3441.3,3441.2,2.230972]
[1641443349855,1.02617739,3442.1,3441.2,2.230972]
[1641443350258,0.00397897,3442.0,3441.2,2.230972]
[1641443350494,0.345,3441.9,3441.2,2.230972]
[1641443350698,0.34841054,3441.9,3441.2,2.230972]
[1641443350894,0.00284212,3441.8,3441.2,2.230972]
[1641443351296,0.0022737,3441.7,3441.2,2.230972]
[1641443351700,0.00170527,3441.6,3441.2,2.230972]
[1641443352102,0.00113685,3441.5,3441.3,0.00097374]
[1641443352303,0.34613685,3441.5,3441.3,0.00097374]
[1641443352502,0.345,3441.5,3441.3,0.00097374]
[1641443354357,7.75,3441.4,3440.1,0.00227369]
[1641443354557,1.345,3441.3,3440.1,0.00227369]
[1641443354758,1.345,3441.3,3440.0,0.99766068]
[1641443355157,1.345,3441.3,3440.1,0.00682108]
[1641443355359,0.72688,3440.8,3440.1,0.00682108]
[1641443355559,0.345,3440.7,3440.1,0.00682108]
[1641443355759,0.345,3440.7,3440.2,2.23121006]
[1641443356160,0.345,3440.7,3440.3,0.00568423]
[1641443357997,0.72693,3440.6,3440.3,0.00568423]
[1641443358998,0.72693,3440.6,3440.2,2.20495021]
[1641443359203,0.00113684,3440.5,3440.2,2.20495021]
[1641443359401,0.00113684,3440.5,3439.4,6.62]
[1641443359402,0.345,3440.4,3439.4,6.62]
[1641443359603,0.7271012,3440.1,3439.4,6.62]
[1641443359807,0.7271012,3440.1,3439.5,0.00454739]
[1641443359808,1.07204,3440.0,3439.5,0.00454739]
[1641443360405,1.07204,3440.0,3439.6,2.14944912]
[1641443360604,0.7271625,3439.8,3439.5,0.00454739]
[1641443360805,0.345,3439.7,3439.4,0.45]
[1641443361602,0.345,3439.7,3439.5,1.9052016]
[1641443362048,0.345,3439.7,3439.6,0.00397897]
[1641443362653,0.345,3439.7,3439.6,0.00621681]
[1641443362951,4.145,3439.7,3439.6,0.00621681]
[1641443363151,0.345,3439.7,3439.6,0.00621681]
[1641443365905,3.695,3439.7,3439.6,0.00621681]
[1641443366807,7.75,3439.5,3438.9,3.10796523]
[1641443367109,7.75,3439.5,3439.0,0.00341054]
[1641443367110,16.95,3439.3,3439.0,0.00341054]
[1641443367405,16.95,3439.3,3438.8,582.57671567]
[1641443367406,16.95,3439.1,3438.8,582.57671567]
[1641443367606,0.345,3439.0,3438.8,582.57671567]
[1641443367807,0.345,3438.9,3438.8,576.75725567]
[1641443368006,0.345,3438.9,3438.8,578.4449802]
[1641443368207,0.345,3438.9,3438.8,578.44611704]
[1641443368408,0.345,3438.9,3438.8,572.62653704]
[1641443368806,0.345,3438.9,3438.8,566.80688704]
[1641443369448,1.345,3438.9,3438.8,560.98737704]
[1641443369747,6.945,3438.9,3438.8,560.98737704]
[1641443369947,11.262,3438.9,3438.8,549.34503704]
[1641443370146,11.262,3438.9,3438.8,543.52381044]
[1641443370350,14.012,3438.9,3438.8,530.19364591]
[1641443370548,14.012,3438.9,3438.8,510.80378531]
[1641443370549,14.08318739,3438.9,3438.8,510.80378531]
[1641443370946,14.08318739,3438.9,3438.8,482.90513816]
[1641443370947,31.03318739,3438.9,3438.8,482.90513816]
[1641443371151,37.28739708,3438.9,3438.8,423.07537405]
[1641443371352,92.18090148,3438.9,3438.8,394.65308405]
[1641443371556,89.44724552,3438.9,3438.8,382.27934175]
[1641443371751,89.0203606,3438.9,3438.8,376.02678679]
[1641443371949,88.7155606,3438.9,3438.8,363.05513604]
[1641443372151,79.41424319,3438.9,3438.8,350.40702964]
[1641443372353,78.68386319,3438.9,3438.8,344.58380964]
[1641443372550,78.68146319,3438.9,3438.8,338.76079964]
[1641443372751,78.75265058,3438.9,3438.8,332.93784964]
[1641443373000,78.75265058,3438.9,3438.8,321.29198964]
[1641443373001,99.73297705,3438.9,3438.8,321.29198964]
[1641443373203,99.69586619,3438.9,3438.8,321.29297264]
[1641443373405,99.69586619,3438.9,3438.8,314.70918802]
[1641443373609,99.69586619,3438.9,3438.8,308.88783802]
[1641443374005,100.70410256,3438.9,3438.8,303.06623802]
[1641443374210,100.70410256,3438.9,3438.8,297.80002552]
[1641443374505,100.77528995,3438.9,3438.8,286.15605552]
[1641443374905,100.77528995,3438.9,3438.8,280.33381552]
[1641443375106,102.37528995,3438.9,3438.8,274.51152552]
[1641443375506,102.37528995,3438.9,3438.8,268.68895552]
[1641443375708,102.37528995,3438.9,3438.8,262.86644552]
[1641443376109,102.37528995,3438.9,3438.8,257.04439552]
[1641443376308,102.37528995,3438.9,3438.8,255.73439552]
[1641443376750,102.36305586,3438.9,3438.8,249.91224552]
[1641443376950,107.08893353,3438.9,3438.8,248.60224552]
[1641443377148,107.08893353,3438.9,3438.8,242.77980552]
[1641443377346,107.08893353,3438.9,3438.8,242.47564851]
[1641443377748,107.08893353,3438.9,3438.8,236.65316851]
[1641443378147,107.08893353,3438.9,3438.8,230.83039851]
[1641443378348,107.08893353,3438.9,3438.8,224.94967851]
[1641443378552,107.20173353,3438.9,3438.8,219.12620851]
[1641443378753,108.62753353,3438.9,3438.8,213.30299851]
[1641443379052,108.63073353,3438.9,3438.8,207.42192851]
[1641443379254,108.63393353,3438.9,3438.8,206.35906122]
[1641443379451,110.91081783,3438.9,3438.8,200.53599122]
[1641443379653,110.91001783,3438.9,3438.8,200.53599122]
[1641443379853,110.91321783,3438.9,3438.8,194.71257122]
[1641443380054,110.92361783,3438.9,3438.8,194.71257122]
[1641443380354,110.92441783,3438.9,3438.8,188.36755383]
[1641443380598,110.9374664,3438.9,3438.8,169.56859983]
[1641443380799,110.9374664,3438.9,3438.8,163.74464983]
[1641443380800,110.9414664,3438.9,3438.8,163.74464983]
[1641443380998,111.24532284,3438.9,3438.8,152.09674983]
[1641443381201,111.24532284,3438.9,3438.8,142.40305135]
[1641443381400,122.12107099,3438.9,3438.8,135.61847396]
[1641443381597,125.10518986,3438.9,3438.8,123.96966396]
[1641443381807,122.10118986,3438.9,3438.8,118.14579396]
[1641443382000,121.95879788,3438.9,3438.8,112.32374396]
[1641443382202,121.95875226,3438.9,3438.8,112.32374396]
[1641443382601,121.95875226,3438.9,3438.8,106.50146396]
[1641443382602,118.9074836,3438.9,3438.8,106.50146396]
[1641443383204,118.9074836,3438.9,3438.8,100.67904396]
[1641443383607,111.04053545,3438.9,3438.8,94.85662396]
[1641443384246,111.02828688,3438.9,3438.8,89.03419396]
[1641443384648,107.99928688,3438.9,3438.8,77.94532833]
[1641443384849,30.49629834,3438.9,3438.8,77.94532833]
[1641443385250,29.48806197,3438.9,3438.8,77.94532833]
[1641443386055,29.48806197,3438.9,3438.8,72.12450833]
[1641443386453,24.7621843,3438.9,3438.8,66.30359833]
[1641443387061,26.3621843,3438.9,3438.8,60.48268833]
[1641443387253,26.3621843,3438.9,3438.8,59.02456053]
[1641443387453,24.0837,3438.9,3438.8,59.02456053]
[1641443387656,24.0837,3438.9,3438.8,47.94394515]
[1641443388106,24.0037,3438.9,3438.8,47.94394515]
[1641443388307,24.0037,3438.9,3438.8,42.12299515]
[1641443388913,24.0037,3438.9,3438.8,36.30197515]
[1641443389311,24.0037,3438.9,3438.8,36.24397515]
[1641443389513,24.0037,3438.9,3438.8,30.42287515]
[1641443389716,23.9537,3438.9,3438.8,30.36487515]
[1641443389912,24.96193637,3438.9,3438.8,24.54384515]
[1641443390514,24.96193637,3438.9,3438.8,18.72277515]
[1641443390914,24.96193637,3438.9,3438.8,12.90163515]
[1641443391119,25.03312376,3438.9,3438.8,10.77833236]
[1641443391416,25.15392376,3438.9,3438.8,4.95540236]
[1641443391615,25.03312376,3438.9,3438.8,4.88421497]
[1641443392048,1.4412608,3436.4,3436.3,7.94006744]
[1641443392254,1.7862608,3436.4,3436.3,3.8151]
[1641443392446,1.7862608,3436.4,3436.3,3.01421059]
[1641443392851,1.7862608,3436.4,3436.3,0.01421059]
[1641443393053,4.24215462,3436.4,3435.7,1.35492059]
[1641443393251,0.8717,3436.2,3435.2,3.7377]
[1641443393551,0.8717,3436.0,3435.0,13.0]
[1641443393753,0.8717,3436.0,3435.6,0.00113685]
[1641443393754,0.8717,3435.8,3435.6,0.00113685]
[1641443393950,1.2167,3435.7,3435.6,0.00113685]
[1641443394150,0.8717,3435.2,3435.0,12.85382995]
[1641443394551,0.8717,3435.2,3435.1,0.00284211]
[1641443394552,2.1717,3435.2,3435.1,0.00284211]
[1641443394754,18.1667,3435.2,3435.1,0.00284211]
[1641443394952,2.2167,3435.2,3435.1,0.00284211]
[1641443395150,1.2167,3435.2,3435.1,0.00284211]
[1641443395600,5.5337,3435.2,3435.1,0.00284211]
[1641443395800,22.4837,3435.2,3435.1,0.00284211]
[1641443396000,25.71206805,3435.2,3435.1,0.00284211]
[1641443396503,25.71206805,3435.2,3435.0,12.85382995]
[1641443396504,0.8717,3435.1,3435.0,12.85382995]
[1641443396706,11.05,3434.8,3432.9,1.42468718]
[1641443396905,11.05,3434.8,3432.2,4.77382203]
[1641443396906,0.8717,3433.3,3432.5,0.72856]
[1641443397103,4.317,3433.4,3432.3,6.956]
[1641443397104,1.2167,3433.2,3433.0,0.0119369]
[1641443397306,1.2167,3433.1,3433.0,0.0119369]
[1641443397504,1.2167,3433.1,3433.0,8.20982988]
[1641443397901,1.2167,3433.1,3433.0,2.15982988]
[1641443398101,1.2167,3433.1,3433.0,1.95982988]
[1641443398504,1.2167,3433.1,3433.0,9.55982988]
[1641443399105,1.2167,3433.1,3433.0,8.24782988]
[1641443399549,1.2167,3433.1,3433.0,6.93582988]
[1641443399958,1.2167,3433.1,3432.4,0.01534744]
[1641443400158,1.2167,3433.1,3432.8,2.1307293]
[1641443400754,1.2167,3433.1,3432.8,2.0727293]
[1641443401157,1.2167,3433.1,3432.8,2.0147293]
[1641443401562,1.029e-05,3432.9,3432.8,2.0147293]
[1641443401761,8.36e-06,3433.2,3432.8,0.01224681]
[1641443401959,5.22839232,3434.6,3432.8,0.01224681]
[1641443401960,0.345,3433.7,3432.8,0.01224681]
[1641443402160,0.345,3434.2,3433.1,0.0128961]
[1641443402359,0.345,3434.2,3433.6,0.728178]
[1641443402566,0.345,3434.2,3433.1,0.0128961]
[1641443402567,0.345,3434.2,3433.3,1.45641]
[1641443403005,0.345,3434.2,3433.3,1.35641]
[1641443403206,0.345,3434.2,3433.6,1.06262919]
[1641443403615,0.345,3434.2,3433.6,1.79097919]
[1641443403809,5.26260426,3435.1,3434.9,4.25180319]
[1641443403810,5.22839232,3435.1,3434.9,4.25180319]
[1641443404014,4.317,3435.3,3434.1,0.01269337]
[1641443404412,0.03432907,3435.1,3433.7,0.72822]
[1641443404612,0.03299641,3435.1,3433.7,0.72822]
[1641443404811,0.03626376,3435.1,3433.6,1.4563637]
[1641443405015,0.03626376,3435.1,3434.0,1.45637]
[1641443405319,18.55112958,3434.3,3433.8,1.67433185]
[1641443405612,16.95,3434.3,3433.8,1.67433185]
[1641443405815,4.317,3434.8,3433.8,1.67433185]
[1641443406014,1.0,3434.2,3433.8,1.67433185]
[1641443406214,0.3,3434.3,3433.8,1.67433185]
[1641443406415,0.345,3434.2,3433.9,0.00682108]
[1641443406617,7.1,3433.9,3432.7,1.46951473]
[1641443406855,0.3831802,3434.1,3432.7,2.19801473]
[1641443406856,0.345,3433.8,3432.7,2.19801473]
[1641443407054,0.345,3433.7,3432.8,0.00625266]
[1641443407661,2.43339807,3433.7,3433.2,1.75957333]
[1641443407868,2.73339807,3433.7,3432.8,0.00625266]
[1641443408065,2.43339807,3433.7,3433.3,0.00341055]
[1641443408262,2.43339807,3433.7,3432.1,4.14290624]
[1641443408263,4.317,3433.4,3432.6,0.00738951]
[1641443408561,4.317,3432.7,3432.2,0.0096632]
[1641443408763,6.68690469,3432.6,3432.2,0.0096632]
[1641443408960,6.68690469,3432.6,3432.1,1.61655125]
[1641443408961,5.662,3432.6,3432.1,1.61655125]
[1641443409161,17.95,3432.5,3432.2,0.0096632]
[1641443409465,0.46274678,3432.4,3432.2,0.0096632]
[1641443409862,0.46274678,3432.4,3432.0,0.01080005]
[1641443410511,0.46274678,3432.4,3432.1,1.81597225]
[1641443410914,0.46274678,3432.4,3432.2,0.0096632]
[1641443411316,16.95,3433.1,3432.3,9.95]
[1641443411514,16.95,3433.1,3432.4,0.7286]
[1641443411713,16.95,3432.9,3432.7,1.86877003]
[1641443411915,0.345,3432.8,3432.7,1.86877003]
[1641443412314,0.345,3432.8,3432.7,6.17559112]
[1641443412513,0.345,3432.8,3432.7,1.87559112]
[1641443412714,0.345,3432.8,3432.7,0.00682109]
[1641443412715,17.295,3432.8,3432.7,0.00682109]
[1641443412921,18.895,3432.8,3432.7,0.00682109]
[1641443413120,18.895,3432.8,3431.9,0.01]
[1641443413314,18.895,3432.8,3432.0,0.00397896]
[1641443413315,1.0,3432.7,3432.0,0.00397896]
[1641443413516,0.645,3432.6,3432.0,0.00397896]
[1641443413813,0.645,3432.6,3432.4,1.97877269]
[1641443413814,0.345,3432.6,3432.4,1.97877269]
[1641443414265,5.32523637,3433.5,3432.6,0.1999]
[1641443414466,4.317,3433.5,3432.7,0.72853]
[1641443414666,0.34897897,3433.4,3432.6,0.1999]
[1641443414871,0.34897897,3433.4,3432.7,0.7285035]
[1641443415067,4.317,3434.3,3432.7,12.5069]
[1641443415268,0.345,3434.2,3433.9,1.79723802]
[1641443415474,0.00454739,3434.1,3433.9,1.79723802]
[1641443415677,0.345,3434.0,3433.9,1.79723802]
[1641443415868,0.34897897,3434.0,3433.9,1.79723802]
[1641443416467,7.897e-05,3434.0,3433.9,6.4]
[1641443416667,0.34507897,3434.0,3433.9,6.4]
[1641443416867,1.79044276,3435.0,3434.0,11.05]
[1641443417073,4.81407764,3435.7,3434.6,0.72813]
[1641443417074,4.72587767,3435.7,3434.6,0.72813]
[1641443417274,1.581e-05,3434.9,3434.6,0.72813]
[1641443417471,0.345,3435.3,3434.7,1.45713354]
[1641443417671,0.00399477,3435.6,3435.4,1.12028382]
[1641443417872,6.69363696,3435.8,3434.9,11.06209821]
[1641443418129,5.69554223,3435.8,3435.4,0.7279056]
[1641443418330,5.69554223,3435.8,3435.4,2.9112656]
[1641443418528,2.34967908,3435.8,3435.5,0.72779]
[1641443418725,8.21194815,3436.3,3435.5,0.72779]
[1641443418926,8.21194815,3436.3,3435.5,0.72892685]
[1641443419125,0.00284212,3436.2,3435.9,1.04335609]
[1641443419329,0.345,3436.1,3435.9,1.04335609]
[1641443419526,0.01239799,3437.6,3436.1,11.05]
[1641443419731,2.27938638,3437.9,3436.1,11.05]
[1641443419732,0.345,3437.5,3436.5,1.4552615]
[1641443419930,2.27938638,3437.9,3436.6,0.01299703]
[1641443419931,0.00568424,3437.1,3436.6,0.01299703]
[1641443420131,0.00568424,3437.1,3436.6,1.87499442]
[1641443420330,0.345,3437.8,3436.7,11.05]
[1641443420527,0.345,3437.8,3437.1,1.45496]
[1641443420731,0.345,3437.8,3437.1,1.45499]
[1641443420732,0.00113685,3437.2,3437.1,1.45499]
[1641443421035,0.00113685,3437.2,3436.8,0.00113684]
[1641443421326,0.00113685,3437.2,3436.7,0.00170527]
[1641443421753,0.345,3437.1,3436.9,1.4551042]
[1641443421961,0.345,3437.1,3436.7,1.45696527]
[1641443421962,16.95,3437.0,3436.7,0.00170527]
[1641443422163,0.345,3436.9,3436.7,0.00170527]
[1641443422357,0.345,3436.8,3436.7,0.00170527]
[1641443423059,0.295,3436.8,3436.7,0.00170527]
[1641443423264,0.295,3436.8,3436.7,4.65170527]
[1641443423463,0.295,3436.8,3436.7,1.73332168]
[1641443423665,0.295,3436.8,3436.6,1.85168542]
[1641443424866,0.295,3436.8,3435.5,6.29935808]
[1641443425064,0.295,3436.8,3435.5,1.45569]
[1641443425264,7.7,3436.7,3435.4,1.45584]
[1641443425505,0.645,3436.6,3435.4,1.45584]
[1641443425708,16.96218468,3436.5,3434.8,1.32500997]
[1641443425909,0.345,3436.4,3434.8,1.32500997]
[1641443426111,18.59954739,3436.4,3434.9,0.00397896]
[1641443426412,18.59954739,3436.4,3435.4,0.72801]
[1641443426413,0.00397897,3436.3,3435.4,0.72801]
[1641443426609,0.345,3436.2,3435.4,0.72801]
[1641443426810,16.95,3436.1,3435.4,0.72801]
[1641443427010,0.345,3436.0,3435.4,0.72801]
[1641443427208,0.3472737,3436.0,3435.4,2.1181131]
[1641443427411,0.00170527,3435.9,3435.5,1.92617066]
[1641443427611,0.345,3435.8,3435.5,1.92617066]
[1641443427912,0.34613685,3435.8,3435.5,4.10995016]
[1641443428111,0.34613685,3435.8,3435.5,9.71351838]
[1641443428312,0.34613685,3435.8,3435.5,4.83789016]
[1641443429858,0.345,3435.9,3435.6,11.05]
[1641443430058,0.345,3436.8,3436.3,1.45537]
[1641443430261,0.345,3436.8,3436.5,0.727629]
[1641443430262,0.0001,3436.8,3436.5,0.727629]
[1641443431260,0.0001,3436.8,3436.5,1.455279]
[1641443431860,0.00682108,3437.0,3436.5,1.455279]
[1641443432268,0.345,3437.7,3436.5,12.505279]
[1641443432466,6.24140322,3438.3,3437.0,1.4549565]
[1641443432667,6.24140322,3438.3,3436.8,2.18234]
[1641443432668,6.24140322,3438.3,3437.6,0.72734]
[1641443432865,0.345,3438.2,3437.1,0.04999999]
[1641443433315,0.345,3438.2,3438.0,2.23689432]
[1641443433717,0.345,3438.2,3437.6,0.72751]
[1641443433718,17.295,3438.2,3437.6,0.72751]
[1641443433916,17.295,3438.2,3437.1,0.04999999]
[1641443434120,17.32876714,3438.2,3437.1,0.04999999]
[1641443434516,17.95,3438.1,3437.1,0.04999999]
[1641443434716,16.95,3437.9,3437.8,2.06287425]
[1641443434915,4.7,3437.8,3437.1,0.04999999]
[1641443435115,0.345,3437.7,3437.5,1.66384873]
[1641443435315,0.345,3437.7,3436.7,1.45529]
[1641443435316,16.95,3437.6,3436.7,1.45529]
[1641443435515,16.95,3437.6,3436.6,0.00170527]
[1641443435516,1.345,3437.5,3436.6,0.00170527]
[1641443435719,1.64841054,3437.5,3436.6,0.00170527]
[1641443435915,16.95284212,3437.4,3436.4,0.00284212]
[1641443436116,1.345,3437.3,3436.2,1.10679671]
[1641443436318,16.95,3437.2,3436.7,2.21405827]
[1641443436517,16.95,3436.9,3436.3,1.63800738]
[1641443436763,0.345,3436.8,3436.3,1.63800738]
[1641443436963,1.345,3436.8,3436.4,0.00284212]
[1641443437167,0.345,3436.8,3436.4,0.00284212]
[1641443437566,16.95,3436.7,3436.4,0.00284212]
[1641443437871,16.95,3436.5,3435.7,0.00682108]
[1641443438066,1.345,3436.4,3435.7,0.00682108]
[1641443438267,4.317,3436.1,3434.5,0.72818]
[1641443438467,4.317,3436.1,3435.1,2.04291912]
[1641443438468,2.26883505,3435.7,3435.1,2.04291912]
[1641443438669,2.26883505,3435.7,3434.9,0.00170527]
[1641443438670,16.95,3435.5,3434.9,0.00170527]
[1641443438971,28.0,3435.3,3433.7,2.91192]
[1641443439170,0.345,3435.2,3434.3,0.00341054]
[1641443439371,24.2,3435.1,3434.0,0.72831]
[1641443439573,24.2,3435.1,3432.9,9.08228]
[1641443439574,16.95,3434.2,3433.8,0.00284212]
[1641443439774,0.345,3434.1,3433.8,0.00284212]
[1641443439969,1.345,3434.1,3433.4,0.00511581]
[1641443440175,16.95,3434.0,3433.0,0.00738951]
[1641443440368,0.345,3433.9,3433.0,0.00738951]
[1641443440609,0.345,3433.9,3433.0,1.4569]
[1641443440806,0.345,3433.9,3433.6,1.21007555]
[1641443441013,0.345,3433.9,3433.5,0.01225131]
[1641443441210,0.345,3433.9,3433.7,0.00341054]
[1641443441413,0.345,3433.9,3433.6,2.10244096]
[1641443441813,0.345,3433.9,3433.7,0.00341054]
[1641443443012,0.345,3433.9,3433.8,0.00113067]
[1641443444013,0.345,3433.9,3433.8,2.80113067]
[1641443444458,0.345,3433.9,3433.8,0.00113067]
[1641443445762,17.295,3433.9,3433.8,0.00113067]
[1641443446161,18.295,3433.9,3433.8,0.00113067]